lending/lending_fUSD_20240622
["ID","MTS","AMOUNT","RATE_DAILY","PERIOD"]
[330141322,1719036385550,-500.0,0.00045479,120]
[330141323,1719036385596,-500.0,0.00045479,120]
[330141324,1719036385642,-500.0,0.00045479,120]
[330141325,1719036385686,-500.0,0.00045479,120]
[330141326,1719036385731,-500.0,0.00045479,120]
[330141327,1719036385778,-500.0,0.00045479,120]
[330141328,1719036385823,-500.0,0.00045479,120]
[330141329,1719036385866,-500.0,0.00045479,120]
[330141330,1719036385912,-500.0,0.00045479,120]
[330141331,1719036385957,-500.0,0.00045479,120]
[330141332,1719036386003,-500.0,0.00045479,120]
[330141333,1719036386048,-500.0,0.00045479,120]
[330141334,1719036386090,-500.0,0.00045479,120]
[330141335,1719036386132,-500.0,0.00045479,120]
[330141336,1719036386177,-500.0,0.00045479,120]
[330141337,1719036386221,-551.86,0.00045479,120]
[330141338,1719036386274,-500.0,0.00045479,120]
[330141339,1719036386318,-564.03,0.00045479,120]
[330141340,1719036386360,-500.0,0.00045479,120]
[330141341,1719036386403,-500.0,0.00045479,120]
[330141342,1719036386447,-500.0,0.00045479,120]
[330141343,1719036386492,-500.0,0.00045479,120]
[330141344,1719036386536,-626.83,0.00045479,120]
[330141345,1719036386582,-500.0,0.00045479,120]
[330141346,1719036386626,-500.0,0.00045479,120]
[330141347,1719036386674,-500.0,0.00045479,120]
[330141348,1719036386719,-563.28,0.00045479,120]
[330141349,1719036386764,-500.0,0.00045479,120]
[330141350,1719036386809,-500.0,0.00045479,120]
[330141351,1719036386852,-500.0,0.00045479,120]
[330141352,1719036386899,-526.47,0.00045479,120]
[330141353,1719036386946,-500.0,0.00045479,120]
[330141354,1719036386993,-500.0,0.00045479,120]
[330141355,1719036387038,-562.99,0.00045479,120]
[330141356,1719036387088,-500.0,0.00045479,120]
[330141357,1719036387138,-500.0,0.00045479,120]
[330141358,1719036387184,-631.91,0.00045479,120]
[330141359,1719036387232,-759.73,0.00045479,120]
[330141360,1719036387278,-500.0,0.00045479,120]
[330141361,1719036387325,-500.0,0.00045479,120]
[330141362,1719036387373,-500.0,0.00045479,120]
[330141363,1719036387422,-500.0,0.00045479,120]
[330141364,1719036387467,-500.0,0.00045479,120]
[330141365,1719036387512,-500.0,0.00045479,120]
[330141366,1719036387560,-752.16,0.00045479,120]
[330141367,1719036387604,-500.0,0.00045479,120]
[330141368,1719036387649,-500.0,0.00045479,120]
[330141369,1719036387703,-500.0,0.00045479,120]
[330141370,1719036387756,-500.0,0.00045479,120]
[330141371,1719036387810,-500.0,0.00045479,120]
[330141372,1719036387861,-500.0,0.00045479,120]
[330141373,1719036387907,-510.64,0.00045479,120]
[330141374,1719036387964,-500.0,0.00045479,120]
[330141375,1719036388222,-500.0,0.00045479,120]
[330141376,1719036388280,-500.0,0.00045479,120]
[330141377,1719036388336,-500.0,0.00045479,120]
[330141378,1719036388384,-500.0,0.00045479,120]
[330141379,1719036388431,-500.0,0.00045479,120]
[330141380,1719036388476,-738.25,0.00045479,120]
[330141381,1719036388519,-1103.22,0.00045479,120]
[330141382,1719036388562,-500.0,0.00045479,120]
[330141383,1719036388605,-569.65,0.00045479,120]
[330141384,1719036388648,-500.0,0.00045479,120]
[330141385,1719036388694,-500.0,0.00045479,120]
[330141386,1719036388737,-785.89,0.00045479,120]
[330141387,1719036388783,-905.82,0.00045479,120]
[330141388,1719036388829,-511.48,0.00045479,120]
[330141389,1719036388876,-599.43,0.00045479,120]
[330141390,1719036388922,-500.0,0.00045479,120]
[330141391,1719036388970,-500.0,0.00045479,120]
[330141392,1719036389016,-1019.82,0.00045479,120]
[330141393,1719036389060,-662.89,0.00045479,120]
[330141394,1719036389107,-500.0,0.00045479,120]
[330141395,1719036389150,-500.0,0.00045479,120]
[330141396,1719036389194,-500.0,0.00045479,120]
[330141397,1719036389239,-767.78,0.00045479,120]
[330141398,1719036389289,-665.78,0.00045479,120]
[330141399,1719036389338,-500.0,0.00045479,120]
[330141400,1719036389386,-516.0,0.00045479,120]
[330141401,1719036389431,-500.0,0.00045479,120]
[330141402,1719036389475,-744.87,0.00045479,120]
[330141403,1719036389529,-500.0,0.00045479,120]
[330141404,1719036389577,-500.0,0.00045479,120]
[330141405,1719036389624,-500.0,0.00045479,120]
[330141406,1719036389676,-824.84,0.00045479,120]
[330141407,1719036389723,-512.02,0.00045479,120]
[330141408,1719036389769,-704.14,0.00045479,120]
[330141409,1719036389815,-1213.53,0.00045479,120]
[330141410,1719036389861,-700.25,0.00045479,120]
[330141411,1719036389907,-500.0,0.00045479,120]
[330141412,1719036389957,-909.09,0.00045479,120]
[330141413,1719036390005,-500.0,0.00045479,120]
[330141414,1719036390064,-500.0,0.00045479,120]
[330141415,1719036390122,-500.0,0.00045479,120]
[330141416,1719036390166,-500.0,0.00045479,120]
[330141417,1719036390210,-500.0,0.00045479,120]
[330141418,1719036390253,-995.17,0.00045479,120]
[330141419,1719036390298,-500.0,0.00045479,90]
[330141420,1719036390341,-500.0,0.00045479,120]
[330141421,1719036390383,-1178.94,0.00045479,120]
[330141422,1719036390426,-500.0,0.00045479,120]
[330141423,1719036390470,-500.0,0.00045479,120]
[330141424,1719036390514,-623.96,0.00045479,120]
[330141425,1719036390558,-500.0,0.00045479,120]
[330141426,1719036390604,-500.0,0.00045479,120]
[330141427,1719036390646,-500.0,0.00045479,120]
[330141428,1719036390694,-500.0,0.00045479,120]
[330141429,1719036390741,-890.56,0.00045479,120]
[330141430,1719036390790,-553.21,0.00045479,120]
[330141431,1719036390834,-500.0,0.00045479,120]
[330141432,1719036390880,-500.0,0.00045479,120]
[330141433,1719036390928,-500.0,0.00045479,120]
[330141434,1719036390973,-500.0,0.00045479,120]
[330141435,1719036391020,-500.0,0.00045479,120]
[330141436,1719036391067,-500.0,0.00045479,120]
[330141437,1719036391113,-500.77,0.00045479,120]
[330141438,1719036391160,-500.0,0.00045479,120]
[330141439,1719036391210,-542.28,0.00045479,120]
[330141440,1719036391255,-500.0,0.00045479,120]
[330141441,1719036391303,-500.0,0.00045479,120]
[330141442,1719036391350,-500.0,0.00045479,120]
[330141443,1719036391398,-500.0,0.00045479,120]
[330141444,1719036391442,-500.0,0.00045479,120]
[330141445,1719036391487,-500.0,0.00045479,120]
[330141446,1719036391533,-500.0,0.00045479,120]
[330141447,1719036391578,-500.0,0.00045479,120]
[330141448,1719036391626,-500.0,0.00045479,120]
[330141449,1719036391674,-500.0,0.00045479,120]
[330141450,1719036391725,-500.0,0.00045479,120]
[330141451,1719036391770,-717.36,0.00045479,120]
[330141452,1719036391815,-500.0,0.00045479,120]
[330141453,1719036391860,-725.93,0.00045479,120]
[330141454,1719036391905,-500.0,0.00045479,120]
[330141455,1719036391950,-980.06,0.00045479,120]
[330141456,1719036391996,-500.0,0.00045479,120]
[330141457,1719036392045,-1633.25,0.00045479,120]
[330141458,1719036392089,-500.0,0.00045479,120]
[330141459,1719036392132,-1289.04,0.00045479,120]
[330141460,1719036392179,-500.0,0.00045479,120]
[330141461,1719036392226,-500.0,0.00045479,120]
[330141462,1719036392274,-500.0,0.00045479,120]
[330141463,1719036392321,-665.31,0.00045479,120]
[330141464,1719036392365,-500.0,0.00045479,120]
[330141465,1719036392409,-500.0,0.00045479,120]
[330141466,1719036392456,-500.0,0.00045479,120]
[330141467,1719036392500,-5634.35,0.00045479,120]
[330141468,1719036392553,-500.0,0.00045479,120]
[330141469,1719036392600,-500.0,0.00045479,120]
[330141470,1719036392647,-505.7,0.00045479,120]
[330141471,1719036392695,-489.83690477,0.00045479,120]
[330141472,1719036392740,-500.0,0.00045479,120]
[330141473,1719036392784,-777.01,0.00045479,120]
[330141474,1719036392828,-2158.16,0.00045479,120]
[330141475,1719036392872,-500.0,0.00045479,120]
[330141477,1719036392916,-500.0,0.00045479,120]
[330141478,1719036392962,-500.0,0.00045479,120]
[330141479,1719036393016,-960.18,0.00045479,120]
[330141480,1719036393278,-500.0,0.00045479,120]
[330141481,1719036393324,-500.0,0.00045479,120]
[330141482,1719036393370,-626.49,0.00045479,120]
[330141483,1719036393423,-519.42034733,0.00045479,120]
[330141484,1719036393467,-888.94,0.00045479,120]
[330141485,1719036393513,-500.0,0.00045479,120]
[330141486,1719036393559,-500.0,0.00045479,120]
[330141487,1719036393605,-504.58,0.00045479,120]
[330141488,1719036393653,-500.0,0.00045479,120]
[330141489,1719036393709,-913.6,0.00045479,120]
[330141490,1719036393756,-722.45,0.00045479,120]
[330141491,1719036393804,-500.0,0.00045479,120]
[330141492,1719036393853,-521.14635431,0.00045479,120]
[330141493,1719036393902,-950.2,0.00045479,120]
[330141494,1719036393955,-1742.54,0.00045479,120]
[330141495,1719036394004,-929.42,0.00045479,120]
[330141497,1719036394055,-1453.6,0.00045479,120]
[330141498,1719036394104,-500.0,0.00045479,120]
[330141499,1719036394161,-500.0,0.00045479,120]
[330141500,1719036394220,-500.0,0.00045479,120]
[330141501,1719036394270,-500.0,0.00045479,120]
[330141502,1719036394318,-500.0,0.00045479,120]
[330141503,1719036394367,-500.0,0.00045479,120]
[330141504,1719036394415,-528.02299629,0.00045479,120]
[330141505,1719036394468,-500.0,0.00045479,120]
[330141506,1719036394514,-639.03,0.00045479,120]
[330141507,1719036394560,-500.0,0.00045479,120]
[330141508,1719036394606,-500.0,0.00045479,120]
[330141509,1719036394652,-915.46,0.00045479,120]
[330141510,1719036394703,-500.0,0.00045479,120]
[330141512,1719036394749,-500.0,0.00045479,120]
[330141513,1719036394795,-500.0,0.00045479,120]
[330141514,1719036394842,-500.0,0.00045479,120]
[330141515,1719036394890,-500.0,0.00045479,120]
[330141516,1719036394937,-500.0,0.00045479,120]
[330141517,1719036394985,-814.58,0.00045479,120]
[330141518,1719036395035,-982.41,0.00045479,120]
[330141519,1719036395082,-675.95,0.00045479,120]
[330141520,1719036395137,-357.08400952,0.00045479,120]
[330141521,1719036395185,-584.59,0.00045479,120]
[330141523,1719036395234,-565.75,0.00045479,120]
[330141524,1719036395282,-908.76,0.00045479,120]
[330141525,1719036395342,-1161.71,0.00045479,120]
[330141526,1719036395402,-500.0,0.00045479,120]
[330141527,1719036395463,-382.81742461,0.00045479,120]
[330141528,1719036395511,-500.0,0.00045479,120]
[330141529,1719036395561,-518.65,0.00045479,120]
[330141530,1719036395609,-500.0,0.00045479,120]
[330141531,1719036395661,-500.0,0.00045479,120]
[330141532,1719036395716,-1190.47,0.00045479,120]
[330141534,1719036395769,-513.74,0.00045479,120]
[330141535,1719036395818,-500.0,0.00045479,120]
[330141536,1719036395868,-1342.95,0.00045479,120]
[330141537,1719036395921,-820.62,0.00045479,120]
[330141538,1719036395972,-562.54,0.00045479,120]
[330141539,1719036396022,-500.0,0.00045479,120]
[330141540,1719036396074,-2558.37,0.00045479,120]
[330141541,1719036396126,-500.0,0.00045479,120]
[330141542,1719036396175,-748.31,0.00045479,120]
[330141543,1719036396228,-500.0,0.00045479,120]
[330141544,1719036396277,-787.38,0.00045479,120]
[330141545,1719036396325,-500.0,0.00045479,120]
[330141546,1719036396371,-500.0,0.00045479,120]
[330141547,1719036396418,-574.71,0.00045479,120]
[330141548,1719036396467,-500.0,0.00045479,120]
[330141549,1719036396515,-500.0,0.00045479,120]
[330141550,1719036396564,-1040.39,0.00045479,120]
[330141552,1719036396612,-422.5476641,0.00045479,120]
[330141553,1719036396660,-500.0,0.00045479,120]
[330141554,1719036396711,-986.48,0.00045479,120]
[330141555,1719036396760,-500.0,0.00045479,120]
[330141556,1719036396807,-500.0,0.00045479,120]
[330141557,1719036396854,-693.64,0.00045479,120]
[330141558,1719036396900,-500.0,0.00045479,120]
[330141559,1719036396950,-567.71,0.00045479,120]
[330141560,1719036396996,-708.63,0.00045479,120]
[330141561,1719036397041,-500.0,0.00045479,120]
[330141562,1719036397088,-603.07,0.00045479,120]
[330141563,1719036397133,-594.59,0.00045479,120]
[330141564,1719036397180,-676.36,0.00045479,120]
[330141565,1719036397226,-500.0,0.00045479,120]
[330141566,1719036397278,-500.0,0.00045479,120]
[330141567,1719036397327,-688.0,0.00045479,120]
[330141568,1719036397376,-519.27,0.00045479,120]
[330141569,1719036397425,-500.0,0.00045479,120]
[330141570,1719036397470,-708.71,0.00045479,120]
[330141571,1719036397518,-500.0,0.00045479,120]
[330141572,1719036397563,-1077.8,0.00045479,120]
[330141573,1719036397609,-500.0,0.00045479,120]
[330141574,1719036397654,-500.0,0.00045479,120]
[330141575,1719036397707,-500.0,0.00045479,120]
[330141576,1719036397753,-1451.03,0.00045479,120]
[330141577,1719036397801,-554.01,0.00045479,120]
[330141578,1719036397846,-500.0,0.00045479,120]
[330141579,1719036397901,-668.77,0.00045479,120]
[330141580,1719036397950,-643.38,0.00045479,120]
[330141581,1719036397997,-620.73,0.00045479,120]
[330141582,1719036398042,-751.13,0.00045479,120]
[330141583,1719036398087,-662.68,0.00045479,120]
[330141584,1719036398131,-500.0,0.00045479,120]
[330141585,1719036398177,-795.08,0.00045479,120]
[330141586,1719036398226,-500.0,0.00045479,120]
[330141587,1719036398273,-804.08,0.00045479,120]
[330141588,1719036398319,-997.76,0.00045479,120]
[330141589,1719036398541,-810.49,0.00045479,120]
[330141590,1719036398609,-500.0,0.00045479,120]
[330141591,1719036398655,-500.0,0.00045479,120]
[330141592,1719036398709,-500.0,0.00045479,120]
[330141593,1719036398757,-858.48,0.00045479,120]
[330141594,1719036398812,-1034.11,0.00045479,120]
[330141595,1719036398865,-584.53,0.00045479,120]
[330141596,1719036398915,-741.25,0.00045479,120]
[330141597,1719036398963,-631.0,0.00045479,120]
[330141598,1719036399013,-2218.12,0.00045479,120]
[330141599,1719036399073,-739.19,0.00045479,120]
[330141600,1719036399136,-500.0,0.00045479,120]
[330141601,1719036399201,-642.93,0.00045479,120]
[330141602,1719036399259,-539.94222143,0.00045479,120]
[330141603,1719036399312,-1722.23,0.00045479,120]
[330141604,1719036399364,-514.89056973,0.00045479,120]
[330141605,1719036399418,-872.0,0.00045479,120]
[330141606,1719036399471,-500.0,0.00045479,120]
[330141607,1719036399524,-500.0,0.00045479,120]
[330141608,1719036399573,-500.0,0.00045479,120]
[330141609,1719036399621,-513.46,0.00045479,120]
[330141610,1719036399675,-342.66095247,0.00045479,120]
[330141611,1719036399729,-851.62,0.00045479,120]
[330141612,1719036399778,-500.0,0.00045479,120]
[330141613,1719036399825,-495.49934946,0.00045479,120]
[330141614,1719036399875,-500.0,0.00045479,120]
[330141615,1719036399928,-567.07,0.00045479,120]
[330141616,1719036399978,-784.0,0.00045479,120]
[330141617,1719036400028,-957.93,0.00045479,120]
[330141618,1719036400088,-556.22,0.00045479,120]
[330141619,1719036400136,-500.0,0.00045479,120]
[330141620,1719036400185,-5700.82,0.00045479,120]
[330141621,1719036400235,-500.0,0.00045479,120]
[330141622,1719036400281,-500.0,0.00045479,120]
[330141623,1719036400329,-835.52,0.00045479,120]
[330141624,1719036400379,-500.0,0.00045479,120]
[330141625,1719036400428,-973.6,0.00045479,120]
[330141626,1719036400476,-500.0,0.00045479,120]
[330141627,1719036400524,-551.94,0.00045479,120]
[330141628,1719036400570,-500.0,0.00045479,120]
[330141629,1719036400618,-933.54,0.00045479,120]
[330141630,1719036400666,-780.03,0.00045479,120]
[330141631,1719036400723,-500.0,0.00045479,120]
[330141632,1719036400774,-531.4,0.00045479,120]
[330141633,1719036400827,-500.0,0.00045479,120]
[330141634,1719036400877,-1010.49,0.00045479,120]
[330141635,1719036400928,-617.22,0.00045479,120]
[330141636,1719036400978,-595.47,0.00045479,120]
[330141637,1719036401029,-500.0,0.00045479,120]
[330141638,1719036401077,-790.44,0.00045479,120]
[330141639,1719036401125,-1491.01,0.00045479,120]
[330141640,1719036401175,-574.78254284,0.00045479,120]
[330141641,1719036401222,-500.0,0.00045479,120]
[330141642,1719036401273,-2692.43,0.00045479,120]
[330141643,1719036401320,-500.0,0.00045479,120]
[330141644,1719036401369,-500.0,0.00045479,120]
[330141645,1719036401417,-500.0,0.00045479,120]
[330141646,1719036401468,-413.16601486,0.00045479,120]
[330141647,1719036401515,-786.9,0.00045479,120]
[330141648,1719036401562,-500.0,0.00045479,120]
[330141649,1719036401610,-573.21,0.00045479,120]
[330141650,1719036401656,-1847.15,0.00045479,120]
[330141651,1719036401707,-1190.07,0.00045479,120]
[330141652,1719036401755,-528.89,0.00045479,120]
[330141653,1719036401802,-814.72,0.00045479,120]
[330141654,1719036401848,-694.8,0.00045479,120]
[330141655,1719036401895,-1169.48,0.00045479,120]
[330141656,1719036401938,-500.0,0.00045479,120]
[330141657,1719036401981,-484.21148374,0.00045479,120]
[330141658,1719036402029,-548.56,0.00045479,120]
[330141659,1719036402074,-3420.06,0.00045479,120]
[330141660,1719036402120,-1395.95,0.00045479,120]
[330141661,1719036402166,-6854.56,0.00045479,120]
[330141662,1719036402214,-3170.55,0.00045479,120]
[330141663,1719036402262,-500.0,0.00045479,120]
[330141664,1719036402313,-1502.76,0.00045479,120]
[330141665,1719036402358,-500.0,0.00045479,120]
[330141666,1719036402408,-5752.17,0.00045479,120]
[330141667,1719036402460,-500.0,0.00045479,120]
[330141668,1719036402517,-2115.1,0.00045479,120]
[330141669,1719036402564,-3003.45,0.00045479,120]
[330141670,1719036402610,-500.0,0.00045479,120]
[330141671,1719036402661,-1104.74,0.00045479,120]
[330141672,1719036402714,-500.0,0.00045479,120]
[330141673,1719036402760,-500.0,0.00045479,120]
[330141674,1719036402807,-500.0,0.00045479,120]
[330141675,1719036402854,-2497.7,0.00045479,120]
[330141676,1719036402905,-18367.02,0.00045479,120]
[330141677,1719036402951,-500.0,0.00045479,120]
[330141678,1719036402994,-500.0,0.00045479,120]
[330141679,1719036403040,-3608.36,0.00045479,120]
[330141680,1719036403089,-8342.57,0.00045479,120]
[330141681,1719036403135,-1123.05,0.00045479,120]
[330141682,1719036403179,-590.54,0.00045479,120]
[330141683,1719036403225,-1007.82,0.00045479,90]
[330141684,1719036403272,-622.12,0.00045479,120]
[330141685,1719036403318,-500.0,0.00045479,120]
[330141686,1719036403365,-676.08,0.00045479,120]
[330141687,1719036403412,-1581.4,0.00045479,120]
[330141688,1719036403458,-750.27,0.00045479,120]
[330141689,1719036403506,-500.0,0.00045479,120]
[330141690,1719036403550,-500.0,0.00045479,120]
[330141691,1719036403595,-500.0,0.00045479,120]
[330141692,1719036403644,-2161.29,0.00045479,120]
[330141693,1719036403698,-500.0,0.00045479,120]
[330141694,1719036404061,-500.0,0.00045479,120]
[330141695,1719036404114,-10793.88,0.00045479,120]
[330141696,1719036404163,-1384.1,0.00045479,120]
[330141697,1719036404216,-2621.62,0.00045479,120]
[330141698,1719036404267,-500.0,0.00045479,120]
[330141699,1719036404316,-2087.49,0.00045479,120]
[330141700,1719036404364,-500.0,0.00045479,120]
[330141701,1719036404413,-500.0,0.00045479,120]
[330141702,1719036404479,-1187.65,0.00045479,120]
[330141703,1719036404530,-1027.73,0.00045479,120]
[330141704,1719036404579,-5356.29,0.00045479,120]
[330141705,1719036404626,-500.0,0.00045479,120]
[330141706,1719036404680,-500.0,0.00045479,120]
[330141707,1719036404726,-559.9,0.00045479,120]
[330141708,1719036404772,-500.0,0.00045479,120]
[330141709,1719036404817,-500.0,0.00045479,120]
[330141710,1719036404864,-500.0,0.00045479,120]
[330141711,1719036404918,-500.0,0.00045479,120]
[330141712,1719036404968,-782.46,0.00045479,120]
[330141713,1719036405019,-562.04,0.00045479,120]
[330141714,1719036405067,-500.0,0.00045479,120]
[330141715,1719036405114,-3675.37,0.00045479,120]
[330141716,1719036405163,-599.9,0.00045479,120]
[330141717,1719036405211,-964.0,0.00045479,120]
[330141718,1719036405262,-899.88,0.00045479,120]
[330141719,1719036405310,-500.0,0.00045479,120]
[330141720,1719036405360,-500.0,0.00045479,120]
[330141721,1719036405409,-500.0,0.00045479,120]
[330141722,1719036405456,-356.46,0.00045479,120]
[330141723,1719036405508,-517.62416138,0.00045479,120]
[330141724,1719036405555,-500.0,0.00045479,120]
[330141725,1719036405600,-179.58446865,0.00045479,120]
[330141726,1719036405647,-500.0,0.00045479,120]
[330141727,1719036405695,-1181.3,0.00045479,120]
[330141728,1719036405744,-1440.57,0.00045479,120]
[330141729,1719036405790,-1302.25,0.00045479,120]
[330141730,1719036405837,-1883.38,0.00045479,120]
[330141731,1719036405881,-500.0,0.00045479,120]
[330141732,1719036405929,-3549.14,0.00045479,120]
[330141733,1719036405979,-1218.53,0.00045479,120]
[330141734,1719036406039,-500.0,0.00045479,120]
[330141735,1719036406094,-1059.21,0.00045479,120]
[330141736,1719036406148,-662.3,0.00045479,120]
[330141737,1719036406195,-1580.79,0.00045479,120]
[330141738,1719036406241,-1599.98,0.00045479,120]
[330141739,1719036406288,-516.29312677,0.00045479,120]
[330141740,1719036406335,-500.0,0.00045479,120]
[330141741,1719036406381,-500.0,0.00045479,120]
[330141742,1719036406428,-593.43,0.00045479,120]
[330141743,1719036406474,-194.58375309,0.00045479,120]
[330141744,1719036406526,-988.64,0.00045479,120]
[330141745,1719036406578,-959.05,0.00045479,120]
[330141746,1719036406626,-3191.3,0.00045479,120]
[330141747,1719036406677,-6139.89,0.00045479,120]
[330141748,1719036406723,-500.0,0.00045479,120]
[330141749,1719036406771,-2618.99,0.00045479,120]
[330141750,1719036406818,-500.0,0.00045479,120]
[330141751,1719036406865,-2568.94,0.00045479,120]
[330141752,1719036406911,-500.0,0.00045479,120]
[330141753,1719036406962,-542.91,0.00045479,120]
[330141754,1719036407014,-2371.19,0.00045479,120]
[330141755,1719036407061,-500.0,0.00045479,120]
[330141756,1719036407111,-516.96,0.00045479,120]
[330141757,1719036407158,-526.89,0.00045479,120]
[330141758,1719036407209,-2246.51,0.00045479,120]
[330141759,1719036407263,-500.0,0.00045479,120]
[330141760,1719036407310,-500.0,0.00045479,120]
[330141761,1719036407358,-500.0,0.00045479,120]
[330141762,1719036407409,-8254.31,0.00045479,120]
[330141763,1719036407456,-3827.85,0.00045479,120]
[330141764,1719036407501,-500.0,0.00045479,120]
[330141765,1719036407545,-588.14,0.00045479,120]
[330141766,1719036407587,-500.0,0.00045479,120]
[330141767,1719036407631,-470.73667843,0.00045479,120]
[330141768,1719036407678,-554.74,0.00045479,120]
[330141769,1719036407722,-738.01,0.00045479,120]
[330141770,1719036407768,-500.0,0.00045479,120]
[330141771,1719036407814,-500.0,0.00045479,120]
[330141772,1719036407860,-500.0,0.00045479,120]
[330141773,1719036407908,-1230.69,0.00045479,120]
[330141774,1719036407955,-500.0,0.00045479,120]
[330141775,1719036408001,-896.32,0.00045479,120]
[330141776,1719036408046,-500.0,0.00045479,120]
[330141777,1719036408091,-746.31,0.00045479,120]
[330141778,1719036408138,-1578.72,0.00045479,120]
[330141779,1719036408186,-2020.64,0.00045479,120]
[330141780,1719036408233,-500.0,0.00045479,120]
[330141781,1719036408279,-1437.3,0.00045479,120]
[330141782,1719036408323,-909.44,0.00045479,120]
[330141783,1719036408370,-549.51,0.00045479,120]
[330141784,1719036408417,-2492.52,0.00045479,120]
[330141785,1719036408466,-520.0,0.00045479,120]
[330141786,1719036408512,-500.0,0.00045753,120]
[330141787,1719036408561,-500.0,0.00045753,120]
[330141788,1719036408612,-500.0,0.00045753,120]
[330141789,1719036408660,-500.0,0.00045753,120]
[330141790,1719036408711,-500.0,0.00045753,120]
[330141791,1719036408757,-500.0,0.00045753,120]
[330141792,1719036408811,-500.0,0.00045753,120]
[330141793,1719036408860,-521.55429827,0.00045753,120]
[330141794,1719036408909,-506.64502874,0.00045753,120]
[330141795,1719036408956,-500.0,0.00045753,120]
[330141796,1719036409005,-500.0,0.00045753,120]
[330141797,1719036409054,-500.0,0.00045753,120]
[330141798,1719036409335,-1019.32,0.00045753,120]
[330141799,1719036409383,-500.0,0.00045753,120]
[330141800,1719036409430,-500.0,0.00045753,120]
[330141801,1719036409476,-584.31,0.00045753,120]
[330141802,1719036409520,-500.0,0.00045753,120]
[330141803,1719036409571,-500.0,0.00045753,120]
[330141804,1719036409618,-580.92,0.00045753,120]
[330141805,1719036409669,-500.0,0.00045753,120]
[330141806,1719036409715,-535.17,0.00045753,120]
[330141807,1719036409762,-816.66,0.00045753,120]
[330141808,1719036409807,-500.0,0.00045753,120]
[330141809,1719036409865,-500.0,0.00045753,120]
[330141810,1719036409922,-500.0,0.00045753,120]
[330141811,1719036409981,-500.0,0.00045753,120]
[330141812,1719036410031,-500.0,0.00045753,120]
[330141813,1719036410080,-1109.65,0.00045753,120]
[330141814,1719036410127,-500.0,0.00045753,120]
[330141815,1719036410183,-500.0,0.00045753,120]
[330141816,1719036410229,-500.0,0.00045753,120]
[330141817,1719036410274,-500.0,0.00045753,120]
[330141818,1719036410322,-500.0,0.00045753,120]
[330141819,1719036410370,-500.0,0.00045753,120]
[330141820,1719036410419,-500.0,0.00045753,120]
[330141821,1719036410470,-500.0,0.00045753,120]
[330141822,1719036410519,-500.0,0.00045753,120]
[330141823,1719036410567,-500.0,0.00045753,120]
[330141824,1719036410616,-500.0,0.00045753,120]
[330141825,1719036410663,-500.0,0.00045753,120]
[330141826,1719036410717,-500.0,0.00045753,120]
[330141827,1719036410766,-500.0,0.00045753,120]